fUSD/lending_fUSD_20260108
["ID","MTS","AMOUNT","RATE_DAILY","PERIOD"]
[400910673,1767860690357,-163.01688665,0.00011781,2]
[400910674,1767860691814,-3499.62721646,0.00011781,2]
[400910675,1767860692734,-3000.75556708,0.00011781,2]
[400910676,1767860692802,-300.0,0.00011784,2]
[400910677,1767860692871,-11.49020511,0.00011788,2]
[400910678,1767860692939,-185.0099351,0.00011808,2]
[400910679,1767860693010,-300.0,0.00011833,2]
[400910680,1767860693086,-300.0,0.00011833,2]
[400910681,1767860693157,-195.0,0.00011858,2]
[400910682,1767860693232,-463.14463878,0.00011928,2]
[400910683,1767860695321,-489.20930786,0.00011928,2]
[400910684,1767860695395,-185.0099351,0.00011928,2]
[400910685,1767860695470,-150.0,0.00011928,2]
[400910686,1767860695551,-2240.66560836,0.00011929,2]
[400910687,1767860697216,-3870.24029736,0.00011929,2]
[400910688,1767860697291,-194.860718,0.00011929,2]
[400910689,1767860701295,1000.0,0.000328,120]
[400910690,1767860702492,1000.0,0.000328,120]
[400910691,1767860703364,1000.0,0.000328,120]
[400910692,1767860703726,-1200.0,0.00011928,2]
[400910693,1767860703818,-300.0,0.00011928,2]
[400910694,1767860703905,-300.0,0.00011928,2]
[400910695,1767860704570,1000.0,0.000328,120]
[400910696,1767860705864,-9471.46431025,0.00011929,2]
[400910697,1767860707080,1000.0,0.000328,120]
[400910698,1767860708327,-166.33879954,0.00011929,2]
[400910699,1767860708435,-2527.33988975,0.00011929,2]
[400910700,1767860708539,-369.1034,0.00011929,2]
[400910701,1767860708631,-300.0,0.00011931,2]
[400910702,1767860712570,1000.0,0.000328,120]
[400910703,1767860713239,1000.0,0.000328,120]
[400910704,1767860714066,1000.0,0.000328,120]
[400910705,1767860714320,1000.0,0.000328,120]
[400910706,1767860714741,1000.0,0.000328,120]
[400910707,1767860715152,1000.0,0.000328,120]
[400910708,1767860715588,1000.0,0.000328,120]
[400910709,1767860716001,1000.0,0.000328,120]
[400910710,1767860716440,1000.0,0.000328,120]
[400910711,1767860716866,1000.0,0.000328,120]
[400910712,1767860717311,1000.0,0.000328,120]
[400910713,1767860717720,1000.0,0.000328,120]
[400910714,1767860718151,1000.0,0.000328,120]
[400910715,1767860718547,1000.0,0.000328,120]
[400910716,1767860719010,1000.0,0.000328,120]
[400910717,1767860719462,1000.0,0.000328,120]
[400910718,1767860719911,1000.0,0.000328,120]
[400910719,1767860720381,1000.0,0.000328,120]
[400910720,1767860720836,1000.0,0.000328,120]
[400910721,1767860721311,1000.0,0.000328,120]
[400910722,1767860722749,1000.0,0.000328,120]
[400910723,1767860723014,1000.0,0.000328,120]
[400910724,1767860723256,1000.0,0.000328,120]
[400910725,1767860723523,1000.0,0.000328,120]
[400910726,1767860723760,1000.0,0.000328,120]
[400910727,1767860724033,1000.0,0.000328,120]
[400910728,1767860724477,1000.0,0.000328,120]
[400910729,1767860724914,1000.0,0.000328,120]
[400910730,1767860725385,1000.0,0.000328,120]
[400910731,1767860725824,1000.0,0.000328,120]
[400910732,1767860726310,1000.0,0.000328,120]
[400910733,1767860726774,1000.0,0.000328,120]
[400910734,1767860727203,1000.0,0.000328,120]
[400910735,1767860727632,1000.0,0.000328,120]
[400910736,1767860728078,1000.0,0.000328,120]
[400910737,1767860728507,1000.0,0.000328,120]
[400910738,1767860728949,1000.0,0.000328,120]
[400910739,1767860736683,1000.0,0.000328,120]
[400910740,1767860737108,1000.0,0.000328,120]
[400910741,1767860737550,1000.0,0.000328,120]
[400910742,1767860738003,1000.0,0.000328,120]
[400910743,1767860738430,1000.0,0.000328,120]
[400910744,1767860738851,1000.0,0.000328,120]
[400910745,1767860739476,1000.0,0.000328,120]
[400910746,1767860740056,1000.0,0.000328,120]
[400910747,1767860740223,1000.0,0.000328,120]
[400910748,1767860740662,1000.0,0.000328,120]
[400910749,1767860741045,1000.0,0.000328,120]
[400910750,1767860741470,1000.0,0.000328,120]
[400910751,1767860741923,1000.0,0.000328,120]
[400910752,1767860742369,1000.0,0.000328,120]
[400910753,1767860742805,1000.0,0.000328,120]
[400910754,1767860743237,1000.0,0.000328,120]
[400910755,1767860744420,1000.0,0.000328,120]
[400910756,1767860744634,1000.0,0.000328,120]
[400910757,1767860744890,1000.0,0.000328,120]
[400910758,1767860745019,1000.0,0.000328,120]
[400910759,1767860745478,1000.0,0.000328,120]
[400910760,1767860745962,1000.0,0.000328,120]
[400910761,1767860746407,1000.0,0.000328,120]
[400910762,1767860746913,1000.0,0.000328,120]
[400910763,1767860747310,1000.0,0.000328,120]
[400910764,1767860747753,1000.0,0.000328,120]
[400910765,1767860748215,1000.0,0.000328,120]
[400910766,1767860748657,1000.0,0.000328,120]
[400910767,1767860749105,1000.0,0.000328,120]
[400910768,1767860749502,1000.0,0.000328,120]
[400910769,1767860757193,170.50312825,0.00011929,2]
[400910770,1767860758527,1000.0,0.000328,120]
[400910771,1767860758929,1000.0,0.000328,120]
[400910772,1767860759032,2276.8149,0.00011929,2]
[400910773,1767860759377,1000.0,0.000328,120]
[400910774,1767860759803,1000.0,0.000328,120]
[400910775,1767860760261,1000.0,0.000328,120]
[400910776,1767860760696,1000.0,0.000328,120]
[400910777,1767860761336,1000.0,0.000328,120]
[400910778,1767860761455,300.0,0.00011932,2]
[400910779,1767860761549,1000.0,0.000328,120]
[400910780,1767860761994,1000.0,0.000328,120]
[400910781,1767860762454,1000.0,0.000328,120]
[400910782,1767860762890,1000.0,0.000328,120]
[400910783,1767860763327,1000.0,0.000328,120]
[400910784,1767860763737,1000.0,0.000328,120]
[400910785,1767860764166,170.50312825,0.00011929,2]
[400910786,1767860764269,1000.0,0.000328,120]
[400910787,1767860764590,1000.0,0.000328,120]
[400910788,1767860765031,1000.0,0.000328,120]
[400910789,1767860766167,1000.0,0.000328,120]
[400910790,1767860766290,356.62466492,0.00011929,2]
[400910791,1767860766383,10000.01,0.00011929,2]
[400910792,1767860766474,8383.36533508,0.00011929,2]
[400910793,1767860766590,1000.0,0.000328,120]
[400910794,1767860766802,1000.0,0.000328,120]
[400910795,1767860766983,1000.0,0.000328,120]
[400910796,1767860767217,1000.0,0.000328,120]
[400910797,1767860767661,1000.0,0.000328,120]
[400910798,1767860771996,1616.64466492,0.00011929,2]
[400910799,1767860772076,883.35533508,0.00011929,2]
[400910800,1767860792326,334.27886913,0.00011932,2]
[400910801,1767860792428,609.39263743,0.00011932,2]
[400910802,1767860792524,180.23888693,0.00011932,2]
[400910803,1767860814440,3072.2527,0.00011929,2]
[400910804,1767860821532,300.0,0.00011932,2]
[400910805,1767860822068,300.0,0.00011932,2]
[400910806,1767860822212,150.0,0.00011932,2]
[400910807,1767860830269,500.0,0.00011932,2]
[400910808,1767860831986,500.0,0.00011932,2]
[400910809,1767860832114,500.0,0.00011932,2]
[400910810,1767860832226,500.0,0.00011932,2]
[400910811,1767860832345,500.0,0.00011932,2]
[400910812,1767860832458,500.0,0.00011932,2]
[400910813,1767860832598,500.0,0.00011932,2]
[400910814,1767860832708,500.0,0.00011932,2]
[400910815,1767860832814,170.49157143,0.00011932,2]
[400910816,1767860832900,329.50842857,0.00011932,2]
[400910817,1767860833019,500.0,0.00011932,2]
[400910818,1767860833125,500.0,0.00011932,2]
[400910819,1767860833232,500.0,0.00011932,2]
[400910820,1767860833339,500.0,0.00011932,2]
[400910821,1767860833461,500.0,0.00011932,2]
[400910822,1767860833604,500.0,0.00011932,2]
[400910823,1767860833729,500.0,0.00011932,2]
[400910824,1767860833859,500.0,0.00011932,2]
[400910825,1767860833960,500.0,0.00011932,2]
[400910826,1767860834093,500.0,0.00011932,2]
[400910827,1767860834203,221.45953497,0.00011932,2]
[400910828,1767860834327,500.0,0.00011932,2]
[400910829,1767860834441,500.0,0.00011932,2]
[400910830,1767860834562,500.0,0.00011932,2]
[400910831,1767860834685,500.0,0.00011932,2]
[400910832,1767860834787,500.0,0.00011932,2]
[400910833,1767860834899,500.0,0.00011932,2]
[400910834,1767860835044,500.0,0.00011932,2]
[400910835,1767860835153,500.0,0.00011932,2]
[400910836,1767860835316,449.04203646,0.00011932,2]
[400910837,1767860835421,50.95796354,0.00011932,2]
[400910838,1767860835542,500.0,0.00011932,2]
[400910839,1767860835682,500.0,0.00011932,2]
[400910840,1767860837182,8949.05203646,0.00011366,2]
[400910841,1767860837261,9892.23796354,0.00011366,2]
[400910842,1767860843424,107.77203646,0.00011929,2]
[400910843,1767860843673,-88.91069931,0.00011929,2]
[400910844,1767860851655,639.54779354,0.00011932,2]
[400910845,1767860851762,639.54779354,0.00011932,2]
[400910846,1767860851870,639.54779354,0.00011932,2]
[400910847,1767860851999,639.54779354,0.00011932,2]
[400910848,1767860852112,639.54779354,0.00011932,2]
[400910849,1767860852233,639.54779354,0.00011932,2]
[400910850,1767860852350,639.54779354,0.00011932,2]
[400910851,1767860852478,639.54779354,0.00011932,2]
[400910852,1767860852597,639.54779354,0.00011932,2]
[400910853,1767860852712,639.54779354,0.00011932,2]
[400910854,1767860853840,639.54779354,0.00011932,2]
[400910855,1767860853948,639.54779354,0.00011932,2]
[400910856,1767860854073,639.54779354,0.00011932,2]
[400910857,1767860854195,639.54779354,0.00011932,2]
[400910858,1767860854319,639.54779354,0.00011932,2]
[400910859,1767860854438,228.97169828,0.00011932,2]
[400910860,1767860854527,410.57609526,0.00011932,2]
[400910861,1767860854635,639.54779354,0.00011932,2]
[400910862,1767860854748,639.54779354,0.00011932,2]
[400910863,1767860854857,639.54779354,0.00011932,2]
[400910864,1767860854968,639.54779354,0.00011932,2]
[400910865,1767860855074,639.54779354,0.00011932,2]
[400910866,1767860855237,639.54779354,0.00011932,2]
[400910867,1767860943773,541.4,5.963e-05,2]
[400910868,1767860944068,541.4,6.264e-05,2]
[400910869,1767860944265,541.4,6.566e-05,2]
[400910870,1767860944455,541.4,6.868e-05,2]
[400910871,1767860944664,541.4,7.169e-05,2]
[400910872,1767860944861,177.5273993,7.471e-05,2]
[400910873,1767860944886,363.8726007,7.471e-05,2]
[400910874,1767860945068,541.4,7.772e-05,2]
[400910875,1767860945397,541.4,8.074e-05,2]
[400910876,1767860945614,541.4,8.375e-05,2]
[400910877,1767860945829,541.4,8.677e-05,2]
[400910878,1767860946230,541.4,8.978e-05,2]
[400910879,1767860946429,541.4,9.28e-05,2]
[400910880,1767860946816,541.4,9.581e-05,2]
[400910881,1767860947022,541.4,9.883e-05,2]
[400910882,1767860947306,541.4,0.00010184,2]
[400910883,1767860947520,30.73364138,0.00010486,2]
[400910884,1767860947543,510.66635862,0.00010486,2]
[400910885,1767860947716,541.4,0.00010787,2]
[400910886,1767860948552,541.4,0.00011089,2]
[400910887,1767860948621,541.4,0.00011391,2]
[400910888,1767860949431,-382.35510907,0.00011692,2]
[400910889,1767860949930,300.0,0.00011411,2]
[400910890,1767860951638,-159.04489093,0.00011692,2]
[400910891,1767860951663,-140.95510907,0.00011733,2]
[400910892,1767860953930,-150.0,0.00011679,2]
[400910893,1767860953955,-11.1,0.00011733,2]
[400910894,1767860954353,-18.44801919,0.00011733,2]
[400910895,1767860954441,-170.50312826,0.00011733,2]
[400910896,1767860954527,-1200.0,0.00011832,2]
[400910897,1767860975781,-196.68273577,0.00011733,2]
[400910901,1767860981911,-9484.26495426,0.00011833,2]
[400910902,1767860984941,-10000.01,0.00011833,2]
[400910903,1767860988318,-10000.01,0.00011833,2]
[400910904,1767861023293,-150.0,0.00011759,2]
[400910905,1767861023333,-391.52721557,0.00011759,2]
[400910906,1767861025575,-108.47278443,0.00011759,2]
[400910907,1767861025611,-150.0,0.00011759,2]
[400910908,1767861025649,-203.41974767,0.00011759,2]
[400910909,1767861025698,-14.45184761,0.00011759,2]
[400910910,1767861031163,-135.54815239,0.00011759,2]
[400910911,1767861031187,-139.7249491,0.00011759,2]
[400910912,1767861031346,-360.2750509,0.00011759,2]
[400910914,1767861031357,-153.19668317,0.00011759,2]
[400910915,1767861031366,-500.0,0.00011759,2]
[400910917,1767861031376,-500.0,0.00011759,2]
[400910919,1767861031385,-150.0,0.00011759,2]
[400910921,1767861031395,-222.12982038,0.00011759,2]
[400910922,1767861031404,-45.83436618,0.00011759,2]
[400910924,1767861031416,-454.16563382,0.00011759,2]
[400910926,1767861031425,-500.0,0.00011759,2]
[400910927,1767861031435,-60.15366204,0.00011814,2]
[400910928,1767861031452,-89.84633796,0.00011814,2]
[400910929,1767861031460,-500.0,0.00011814,2]
[400910930,1767861031470,-199.74900552,0.00011814,2]
[400910931,1767861031479,-500.0,0.00011814,2]
[400910932,1767861031488,-500.0,0.00011814,2]
[400910933,1767861031498,-500.0,0.00011814,2]
[400910934,1767861031507,-500.0,0.00011814,2]
[400910935,1767861031517,-500.0,0.00011814,2]
[400910936,1767861031526,-233.99520839,0.00011832,2]
[400910937,1767861031535,-500.0,0.00011832,2]
[400910938,1767861031545,-500.0,0.00011832,2]
[400910939,1767861031554,-500.0,0.00011832,2]
[400910940,1767861031563,-500.0,0.00011832,2]
[400910941,1767861031572,-500.0,0.00011832,2]
[400910942,1767861031582,-500.0,0.00011832,2]
[400910943,1767861031592,-284.92805073,0.00011832,2]
[400910945,1767861031604,-215.07194927,0.00011832,2]
[400910946,1767861031613,-500.0,0.00011832,2]
[400910947,1767861031622,-81.68222315,0.00011832,2]
[400910948,1767861031639,-418.31777685,0.00011832,2]
[400910949,1767861031648,-500.0,0.00011832,2]
[400910950,1767861031657,-500.0,0.00011832,2]
[400910951,1767861031667,-500.0,0.00011832,2]
[400910952,1767861031676,-500.0,0.00011832,2]
[400910953,1767861031685,-500.0,0.00011832,2]
[400910954,1767861031694,-500.0,0.00011832,2]
[400910955,1767861031703,-376.53123079,0.00011832,2]
[400910957,1767861031715,-123.46876921,0.00011832,2]
[400910959,1767861031724,-500.0,0.00011832,2]
[400910961,1767861031734,-279.49463271,0.00011832,2]
[400910964,1767861031745,-220.50536729,0.00011832,2]
[400910966,1767861031755,-75.57121041,0.00011832,2]
[400910969,1767861031767,-424.42878959,0.00011832,2]
[400910971,1767861031777,-391.43528978,0.00011832,2]
[400910975,1767861037583,-108.56471022,0.00011832,2]
[400910976,1767861037593,-300.0,0.00011832,2]
[400910977,1767861037603,-300.0,0.00011832,2]
[400910978,1767861037613,-1200.0,0.00011832,2]
[400910979,1767861037624,-300.0,0.00011832,2]
[400910980,1767861037634,-270.0,0.00011832,2]
[400910981,1767861037643,-150.0,0.00011832,2]
[400910982,1767861037653,-252.0,0.00011832,2]
[400910983,1767861037663,-300.0,0.00011833,2]
[400910984,1767861037673,-970515.71504574,0.00011833,2]
[400910985,1767861037683,-26514.5254,0.00011833,2]
[400910986,1767861037693,-15064.07141286,0.00011833,2]
[400910987,1767861037703,-2500.0,0.00011834,2]
[400910988,1767861037713,-482.10117033,0.00011869,2]
[400910989,1767861037722,-150.0,0.00011869,2]
[400910990,1767861037732,-500.0,0.00011869,2]
[400910991,1767861037741,-500.0,0.00011869,2]
[400910992,1767861037752,-500.0,0.00011869,2]
[400910993,1767861037762,-500.0,0.00011869,2]
[400910994,1767861037771,-500.0,0.00011869,2]
[400910995,1767861037781,-193.0,0.00011881,2]
[400910996,1767861037791,-1561.43224408,0.00011923,2]
[400910997,1767861037800,-500.0,0.00011923,2]
[400910998,1767861037809,-500.0,0.00011923,2]
[400910999,1767861037819,-500.0,0.00011923,2]
[400911000,1767861037829,-500.0,0.00011923,2]
[400911001,1767861037838,-500.0,0.00011923,2]
[400911002,1767861037848,-17139.32837664,0.00011929,2]
[400911003,1767861037858,-1000.0,0.00011931,2]
[400911004,1767861037868,-9999.99,0.00011933,2]
[400911005,1767861037878,-2095.37,0.00011933,2]
[400911006,1767861037887,-9999.99,0.00011933,2]
[400911007,1767861037897,-6882.44,0.00011933,2]
[400911008,1767861037907,-347.78,0.00011933,2]
[400911009,1767861037917,-84023.7,0.00011933,2]
[400911010,1767861037927,-1604.35,0.00011933,2]
[400911011,1767861037937,-999.99,0.00011933,2]
[400911012,1767861037947,-150.99,0.00011933,2]
[400911013,1767861037956,-8526.42,0.00011933,2]
[400911014,1767861037967,-9999.99,0.00011933,2]
[400911015,1767861037977,-9999.99,0.00011933,2]
[400911016,1767861037987,-1465.64,0.00011933,2]
[400911017,1767861038000,-7632.64,0.00011933,2]
[400911018,1767861038011,-9999.99,0.00011933,2]
[400911019,1767861038022,-250.0,0.00011933,2]
[400911020,1767861038039,-195.0,0.00011933,2]
[400911021,1767861038052,-20658.1,0.00011934,2]
[400911022,1767861038063,-366.30299542,0.0001195,2]
[400911023,1767861038079,-500.0,0.00011978,2]
[400911024,1767861038095,-500.0,0.00011978,2]
[400911025,1767861038111,-500.0,0.00011978,2]
[400911026,1767861038121,-500.0,0.00011978,2]
[400911027,1767861038132,-500.0,0.00011978,2]
[400911028,1767861038141,-195.0,0.00011979,2]
[400911029,1767861038152,-151.0,0.00012022,2]
[400911030,1767861038162,-151.0,0.00012022,2]
[400911033,1767861038173,-151.0,0.00012022,2]
[400911035,1767861038183,-151.0,0.00012022,2]
[400911037,1767861038194,-500.0,0.00012022,2]
[400911039,1767861038205,-151.0,0.00012022,2]
[400911041,1767861038216,-500.0,0.00012022,2]
[400911043,1767861038227,-151.0,0.00012022,2]
[400911045,1767861038237,-500.0,0.00012022,2]
[400911047,1767861038247,-151.0,0.00012022,2]
[400911049,1767861038257,-500.0,0.00012022,2]
[400911051,1767861038267,-151.0,0.00012022,2]
[400911053,1767861038277,-500.0,0.00012022,2]
[400911055,1767861038288,-151.0,0.00012022,2]
[400911057,1767861038302,-500.0,0.00012022,2]
[400911060,1767861038312,-151.0,0.00012022,2]
[400911062,1767861038323,-500.0,0.00012022,2]
[400911064,1767861038333,-151.0,0.00012022,2]
[400911065,1767861038344,-633.89985627,0.00012022,2]
[400911068,1767861038355,-151.0,0.00012022,2]
[400911070,1767861038366,-151.0,0.00012022,2]
[400911071,1767861038377,-151.0,0.00012022,2]
[400911074,1767861038392,-151.0,0.00012022,2]
[400911076,1767861038403,-151.0,0.00012022,2]
[400911078,1767861038414,-151.0,0.00012022,2]
[400911080,1767861038425,-151.0,0.00012022,2]
[400911082,1767861038435,-151.0,0.00012022,2]
[400911084,1767861038445,-151.0,0.00012022,2]
[400911086,1767861038456,-151.0,0.00012022,2]
[400911088,1767861038466,-200.0,0.00012022,2]
[400911089,1767861038477,-500.0,0.00012022,2]
[400911090,1767861038487,-151.0,0.00012022,2]
[400911091,1767861038498,-234.79954054,0.00012022,2]
[400911092,1767861038508,-151.0,0.00012022,2]
[400911093,1767861038518,-151.0,0.00012022,2]
[400911094,1767861038529,-151.0,0.00012022,2]
[400911095,1767861038539,-151.0,0.00012022,2]
[400911096,1767861038549,-151.0,0.00012022,2]
[400911097,1767861038560,-151.0,0.00012022,2]
[400911098,1767861038570,-151.0,0.00012022,2]
[400911099,1767861038580,-151.0,0.00012022,2]
[400911100,1767861038590,-151.0,0.00012022,2]
[400911101,1767861038600,-151.0,0.00012022,2]
[400911102,1767861038611,-1000.0,0.00012028,2]
[400911103,1767861038621,-1000.0,0.00012028,2]
[400911104,1767861038631,-1619.28,0.00012028,2]
[400911105,1767861038642,-299.99,0.00012028,2]
[400911106,1767861038652,-4987.2,0.00012028,2]
[400911108,1767861038662,-5884.67,0.00012028,2]
[400911110,1767861038672,-150.99,0.00012028,2]
[400911112,1767861038684,-1548.21,0.00012028,2]
[400911114,1767861038696,-499.99,0.00012028,2]
[400911116,1767861038706,-1000.0,0.00012029,2]
[400911118,1767861038718,-426.19,0.00012029,2]
[400911121,1767861038729,-500.0,0.00012033,2]
[400911123,1767861038739,-500.0,0.00012033,2]
[400911125,1767861038750,-219.97512683,0.00012033,2]
[400911126,1767861038760,-500.0,0.00012033,2]
[400911129,1767861038770,-500.0,0.00012033,2]
[400911130,1767861038779,-500.0,0.00012033,2]
[400911132,1767861038789,-2018.55,0.00012055,2]
[400911135,1767861038799,-500.0,0.00012088,2]
[400911137,1767861038808,-500.0,0.00012088,2]
[400911139,1767861038819,-500.0,0.00012088,2]
[400911140,1767861038829,-500.0,0.00012088,2]
[400911143,1767861038839,-500.0,0.00012143,2]
[400911145,1767861038849,-500.0,0.00012143,2]
[400911147,1767861038859,-500.0,0.00012143,2]
[400911148,1767861038869,-500.0,0.00012143,2]
[400911151,1767861038880,-200.0,0.00012149,2]
[400911152,1767861038890,-500.0,0.00012197,2]
[400911155,1767861038900,-500.0,0.00012197,2]
[400911157,1767861038910,-500.0,0.00012197,2]
[400911159,1767861038920,-500.0,0.00012197,2]
[400911160,1767861038931,-300.0,0.00012198,2]
[400911163,1767861038941,-500.0,0.00012252,2]
[400911164,1767861038951,-500.0,0.00012252,2]
[400911166,1767861038962,-500.0,0.00012252,2]
[400911169,1767861038973,-500.0,0.00012252,2]
[400911170,1767861038984,-200.0,0.00012271,2]
[400911172,1767861038995,-1619.28,0.00012302,2]
[400911174,1767861039005,-500.0,0.00012307,2]
[400911176,1767861039015,-500.0,0.00012307,2]
[400911179,1767861039029,-500.0,0.00012307,2]
[400911181,1767861039040,-500.0,0.00012307,2]
[400911183,1767861039051,-500.0,0.00012307,2]
[400911185,1767861039062,-166.66,0.00012329,2]
[400911187,1767861039073,-500.0,0.00012362,2]
[400911189,1767861039084,-500.0,0.00012362,2]
[400911191,1767861039094,-500.0,0.00012362,2]
[400911193,1767861039105,-500.0,0.00012362,2]
[400911195,1767861039115,-166.66,0.00012368,2]
[400911197,1767861039126,-12660.66,0.00012368,2]
[400911199,1767861039138,-200.0,0.00012393,2]
[400911201,1767861039148,-500.0,0.00012417,2]
[400911203,1767861039157,-500.0,0.00012417,2]
[400911205,1767861039168,-500.0,0.00012417,2]
[400911207,1767861039178,-500.0,0.00012417,2]
[400911209,1767861039187,-164.07,0.00012425,2]
[400911211,1767861039197,-1562.49,0.00012434,2]
[400911213,1767861039208,-769.41,0.00012434,2]
[400911215,1767861039218,-166.66,0.00012452,2]
[400911217,1767861039229,-653.3,0.00012456,2]
[400911219,1767861039239,-500.0,0.00012471,2]
[400911221,1767861039249,-500.0,0.00012471,2]
[400911223,1767861039259,-500.0,0.00012471,2]
[400911225,1767861039270,-500.0,0.00012471,2]
[400911227,1767861039281,-15064.07141285,0.00012507,2]
[400911229,1767861039291,-200.0,0.00012517,2]
[400911231,1767861039302,-500.0,0.00012526,2]
[400911233,1767861039313,-500.0,0.00012526,2]
[400911235,1767861039324,-236.20445804,0.00012526,2]
[400911237,1767861039335,-471.85856957,0.00012526,2]
[400911239,1767861039346,-500.0,0.0001257,2]
[400911241,1767861039357,-166.66,0.00012575,2]
[400911243,1767861039368,-1619.28,0.00012576,2]
[400911245,1767861039379,-500.0,0.00012581,2]
[400911247,1767861039390,-500.0,0.00012581,2]
[400911249,1767861039401,-440.06247596,0.00012581,2]
[400911252,1767861039411,-17139.32837656,0.00012592,2]
[400911253,1767861039422,-500.0,0.00012636,2]
[400911255,1767861039432,-500.0,0.00012691,2]
[400911257,1767861039442,-166.66,0.00012699,2]
[400911259,1767861039452,-500.0,0.00012745,2]
[400911262,1767861039463,-166.66,0.00012776,2]
[400911290,1767861039740,-392.21018207,0.000128,2]
[400911292,1767861039755,-166.66,0.00012822,2]
[400911295,1767861039767,-1619.28,0.0001285,2]
[400911297,1767861039778,-500.0,0.00012855,2]
[400911299,1767861039789,-255.0,0.00012909,2]
[400911300,1767861039798,-166.66,0.00012945,2]
[400911302,1767861039808,-1680.0,0.00012991,2]
[400911304,1767861039818,-420.0,0.00012991,2]
[400911306,1767861039827,-420.0,0.00012991,2]
[400911309,1767861039837,-1680.0,0.00013015,2]
[400911311,1767861039846,-300.0,0.00013015,2]
[400911312,1767861039856,-195.0,0.00013015,2]
[400911314,1767861039865,-188.94617776,0.00013015,2]
[400911316,1767861039875,-193.0,0.00013016,2]
[400911319,1767861039886,-195.0,0.00013016,2]
[400911321,1767861039896,-3784.73085049,0.0001305,2]
[400911323,1767861039907,-500.0,0.00013084,2]
[400911325,1767861039916,-1619.28,0.00013124,2]
[400911327,1767861039926,-769.41,0.00013125,2]
[400911329,1767861039936,-300.0,0.00013126,2]
[400911331,1767861039945,-195.0,0.00013126,2]
[400911333,1767861039956,-250.0,0.00013126,2]
[400911335,1767861039966,-500.0,0.00013129,2]
[400911337,1767861039976,-150.49525617,0.00013178,2]
[400911339,1767861039986,-150.0,0.00013178,2]
[400911341,1767861039996,-150.0,0.00013178,2]
[400911343,1767861040006,-150.0,0.00013178,2]
[400911345,1767861040016,-500.0,0.00013178,2]
[400911347,1767861040026,-288.61019467,0.00013178,2]
[400911349,1767861040037,-150.0,0.00013178,2]
[400911351,1767861040047,-221.72177176,0.00013178,2]
[400911353,1767861040057,-1173.0,0.00013178,2]
[400911355,1767861040067,-15064.07141285,0.00013181,2]
[400911357,1767861040078,-166.66,0.00013184,2]
[400911359,1767861040088,-231.03492311,0.00013233,2]
[400911360,1767861040098,-150.0,0.00013233,2]
[400911362,1767861040108,-184.06920116,0.00013233,2]
[400911364,1767861040117,-500.0,0.00013233,2]
[400911366,1767861040127,-150.0,0.00013233,2]
[400911368,1767861040137,-1173.0,0.00013233,2]
[400911370,1767861040147,-17139.32837656,0.00013256,2]